fUSD/lending_fUSD_20250416
["ID","MTS","AMOUNT","RATE_DAILY","PERIOD"]
[358162234,1744806687204,-53804.15,0.000347,14]
[358162235,1744806687214,-164.0935347,0.00034761,4]
[358162236,1744806687224,-500.0,0.00034864,7]
[358162237,1744806687234,-500.0,0.00034886,2]
[358162238,1744806687244,-354.25237909,0.00034886,2]
[358162239,1744806687254,-26070.89006814,0.0003489,14]
[358162240,1744806687264,-500.0,0.0003495,7]
[358162241,1744806687273,-500.0,0.00034983,7]
[358162242,1744806687285,-1998.90762194,0.00034999,7]
[358162243,1744806687295,-349.68,0.00035,120]
[358162244,1744806687305,-6019.98835252,0.00035,2]
[358162245,1744806687315,-227.30224341,0.00035,2]
[358162246,1744806687325,-180385.28758898,0.00035,4]
[358162247,1744806687335,-372.48229493,0.00035,2]
[358162248,1744806687345,-216129.53101834,0.00035,4]
[358162249,1744806687355,-3485.18139268,0.00035,4]
[358162250,1744806687365,-307.71876853,0.00035,30]
[358162251,1744806687374,-17053.81843853,0.00035,30]
[358162252,1744806687384,-700.0,0.00035,2]
[358162253,1744806687399,-152.03648063,0.00035,30]
[358162254,1744806687409,-20000.0,0.00035,5]
[358162255,1744806687419,-2260.0,0.00035,14]
[358162256,1744806687429,-860.0,0.00035,15]
[358162257,1744806687438,-2000.0,0.00035,4]
[358162258,1744806687448,-1489.53,0.00035068,2]
[358162259,1744806687458,-7266.20649834,0.000351,30]
[358162260,1744806687467,-1200.0,0.00035124,7]
[358162261,1744806687478,-1120.0,0.0003526,2]
[358162262,1744806687490,-462.0,0.0003526,2]
[358162263,1744806687500,-500.0,0.00035343,2]
[358162264,1744806687519,-500.0,0.00035343,2]
[358162265,1744806687531,-500.0,0.00035354,7]
[358162266,1744806687541,-2000.0,0.00035412,60]
[358162267,1744806687551,-500.0,0.00035412,60]
[358162268,1744806687561,-150.98555835,0.00035438,2]
[358162269,1744806687570,-152.0,0.00035542,10]
[358162270,1744806687580,-995.24558985,0.000356,7]
[358162271,1744806687589,-3297.29187529,0.000356,7]
[358162272,1744806687599,-57707.46253486,0.000356,7]
[358162273,1744806687609,-262.13,0.00035616,2]
[358162274,1744806687620,-1200.0,0.00035696,7]
[358162275,1744806687630,-332.60791905,0.00035786,2]
[358162276,1744806687640,-2425.39552419,0.000358,30]
[358162277,1744806687650,-1200.0,0.00035817,7]
[358162278,1744806687660,-494491.10819983,0.0003593,7]
[358162279,1744806687670,-585.35,0.00035965,2]
[358162280,1744806687680,-3724.0,0.00035986,2]
[358162281,1744806687690,-152.77672497,0.00036,7]
[358162282,1744806687699,-300.0,0.00036,2]
[358162283,1744806687709,-400.0,0.00036,120]
[358162284,1744806687718,-500.0,0.00036,5]
[358162285,1744806687728,-212.0,0.00036,2]
[358162286,1744806687737,-500.0,0.00036061,7]
[358162287,1744806687748,-1120.0,0.00036082,2]
[358162288,1744806687757,-462.0,0.00036082,2]
[358162289,1744806687768,-1200.0,0.00036135,7]
[358162290,1744806687779,-500.0,0.00036165,2]
[358162291,1744806687789,-500.0,0.00036165,2]
[358162292,1744806687799,-1200.0,0.00036188,7]
[358162293,1744806687808,-1200.0,0.00036289,7]
[358162294,1744806687818,-53804.15,0.000365,14]
[358162295,1744806687828,-964.63110226,0.00036508,60]
[358162296,1744806687837,-500.0,0.00036508,60]
[358162297,1744806687847,-500.0,0.00036601,7]
[358162298,1744806687856,-152.0,0.00036635,11]
[358162299,1744806687867,-810.88,0.00036727,2]
[358162300,1744806687876,-530.81,0.00036727,2]
[358162301,1744806687885,-660.37,0.00036791,2]
[358162302,1744806687895,-503.15014138,0.00036795,2]
[358162303,1744806687905,-5988.62,0.000368,14]
[358162304,1744806687914,-500.0,0.00036803,7]
[358162305,1744806687924,-1143.02066262,0.00036904,2]
[358162306,1744806687933,-477.45423371,0.00036904,2]
[358162307,1744806687943,-262.13,0.00036986,2]
[358162308,1744806687952,-300.0,0.00036986,30]
[358162309,1744806687962,-555.35588457,0.00036987,2]
[358162310,1744806687972,-500.0,0.00036987,2]
[358162311,1744806687982,-336.17972449,0.00036988,120]
[358162312,1744806687993,-2999.99,0.00037,2]
[358162313,1744806688002,-1570.3,0.00037,2]
[358162314,1744806688012,-153033.2872446,0.00037,2]
[358162315,1744806688022,-2999.99,0.00037,2]
[358162316,1744806688031,-3000.0,0.00037,2]
[358162317,1744806688041,-3000.0,0.00037,2]
[358162318,1744806688051,-3017.62,0.00037,2]
[358162319,1744806688061,-1800.0,0.00037,38]
[358162320,1744806688071,-750.0,0.00037,2]
[358162321,1744806688080,-344.91441206,0.00037155,2]
[358162322,1744806688090,-168.75603955,0.000372,120]
[358162323,1744806688099,-674.4,0.00037205,30]
[358162324,1744806688109,-500.0,0.00037296,7]
[358162325,1744806688119,-500.0,0.0003743,7]
[358162326,1744806688128,-1000.0,0.00037518,7]
[358162327,1744806688138,-1000.0,0.00037561,7]
[358162328,1744806688147,-4195.19612305,0.0003759,2]
[358162329,1744806688157,-287.65754334,0.00037604,60]
[358162330,1744806688167,-152.0,0.00037728,12]
[358162331,1744806688177,-168.03122777,0.000378,2]
[358162332,1744806688187,-500.0,0.00037809,2]
[358162333,1744806688196,-500.0,0.00037968,7]
[358162334,1744806688206,-500.0,0.0003799,7]
[358162335,1744806688216,-1000.0,0.00038,12]
[358162336,1744806688226,-51650.26147524,0.00038,5]
[358162337,1744806688236,-1007.477399,0.00038,120]
[358162338,1744806688246,-536.6413694,0.00038,39]
[358162339,1744806688256,-400.0,0.00038,120]
[358162340,1744806688265,-513.41178544,0.00038,120]
[358162341,1744806688275,-2000.0,0.00038,4]
[358162342,1744806688286,-1000.0,0.00038056,7]
[358162343,1744806688295,-500.0,0.00038073,7]
[358162344,1744806688305,-643.29894814,0.00038106,5]
[358162345,1744806688313,-1200.0,0.00038147,7]
[358162346,1744806688322,-1000.0,0.00038208,7]
[358162347,1744806688330,-585.35,0.00038229,2]
[358162348,1744806688338,-500.0,0.00038247,7]
[358162349,1744806688347,-367.0,0.00038356,14]
[358162350,1744806688356,-437.92259623,0.00038356,7]
[358162351,1744806688364,-262.13,0.00038356,2]
[358162352,1744806688374,-150.0,0.000384,5]
[358162353,1744806688382,-477.52769731,0.000384,2]
[358162354,1744806688396,-1200.0,0.000384,2]
[358162355,1744806688405,-348.08628454,0.000384,2]
[358162356,1744806688415,-500.0,0.00038433,7]
[358162357,1744806688424,-357.6762453,0.00038524,2]
[358162358,1744806688434,-500.0,0.0003863,2]
[358162359,1744806688444,-500.0,0.00038681,7]
[358162360,1744806688454,-500.0,0.00038803,5]
[358162361,1744806688463,-152.0,0.00038821,13]
[358162362,1744806688473,-3097.78,0.000389,14]
[358162363,1744806688484,-7503.14769134,0.0003899,14]
[358162364,1744806688495,-1885.51657122,0.00039,120]
[358162365,1744806688504,-4857.92252233,0.00039,120]
[358162366,1744806688514,-317.81085808,0.00039,120]
[358162367,1744806688523,-800.0,0.00039,2]
[358162368,1744806688533,-212.0,0.00039,2]
[358162369,1744806688543,-200.0,0.00039066,14]
[358162370,1744806688553,-500.0,0.00039452,2]
[358162371,1744806688563,-1200.0,0.0003954,7]
[358162372,1744806688572,-1200.0,0.00039564,7]
[358162373,1744806688582,-7682.18221396,0.0003961,7]
[358162374,1744806688592,-209.62154776,0.0003962,2]
[358162375,1744806688602,-262.13,0.00039726,2]
[358162376,1744806688611,-500.0,0.00039726,15]
[358162377,1744806688621,-503.34218512,0.00039726,15]
[358162378,1744806688630,-430.00379362,0.00039726,15]
[358162379,1744806688639,-170610.97007321,0.000398,2]
[358162380,1744806688649,-370.91026638,0.00039893,2]
[358162381,1744806688659,-152.0,0.00039913,14]
[358162382,1744806688668,-660.37,0.00039922,2]
[358162383,1744806688678,-8947.11517392,0.00039999,7]
[358162384,1744806688688,-967.53247969,0.0004,20]
[358162385,1744806688698,-1000.0,0.0004,11]
[358162386,1744806688707,-406.50184272,0.0004,7]
[358162387,1744806688716,-941.40985606,0.0004,7]
[358162388,1744806688726,-1500.0,0.0004,7]
[358162389,1744806688735,-1003.0,0.0004,2]
[358162390,1744806688745,-1000.0,0.0004,12]
[358162391,1744806688756,-6438.31135698,0.0004,14]
[358162392,1744806688765,-723.38061655,0.0004,5]
[358162393,1744806688775,-589.88617948,0.0004,2]
[358162394,1744806688784,-16615.39591686,0.0004,2]
[358162395,1744806688794,-378.99974353,0.0004,2]
[358162396,1744806688803,-5068.67459618,0.0004,2]
[358162397,1744806688813,-212.41677769,0.0004,2]
[358162398,1744806688823,-152.0,0.0004,2]
[358162399,1744806688833,-152.5652089,0.0004,2]
[358162400,1744806688843,-2217.49349466,0.0004,7]
[358162401,1744806688855,-1663.19,0.0004,2]
[358162402,1744806688864,-1000.0,0.0004,2]
[358162403,1744806688873,-2732.0,0.0004,3]
[358162404,1744806688883,-3637.17770375,0.0004,10]
[358162405,1744806688892,-12609.82422569,0.0004,15]
[358162406,1744806688901,-56326.0939753,0.0004,2]
[358162407,1744806688911,-776.72666392,0.0004,5]
[358162408,1744806688920,-1439.76511658,0.0004,10]
[358162409,1744806688929,-151.0,0.0004,2]
[358162410,1744806688939,-500.0,0.0004,120]
[358162411,1744806688948,-466.0,0.0004,120]
[358162412,1744806688957,-400.0,0.0004,120]
[358162413,1744806688967,-161.24077499,0.0004,2]
[358162414,1744806688976,-25643.64517555,0.0004,120]
[358162415,1744806688985,-39867.75572002,0.0004,120]
[358162416,1744806688995,-513.41178544,0.0004,120]
[358162417,1744806689004,-599000.0,0.0004,30]
[358162418,1744806689014,-1000.0,0.0004003,30]
[358162419,1744806689023,-500.0,0.00040071,30]
[358162420,1744806689032,-500.0,0.00040274,2]
[358162421,1744806689041,-1000.0,0.00040389,30]
[358162422,1744806689051,-585.35,0.00040492,2]
[358162423,1744806689061,-1264.0,0.00040561,8]
[358162424,1744806689071,-886.86,0.00040584,2]
[358162425,1744806689080,-450.43,0.00040584,2]
[358162426,1744806689090,-450.43,0.00040584,2]
[358162427,1744806689100,-450.43,0.00040584,2]
[358162428,1744806689109,-207.98,0.0004059,2]
[358162429,1744806689119,-150.0,0.0004059,2]
[358162430,1744806689128,-150.0,0.0004059,2]
[358162431,1744806689138,-150.0,0.0004059,2]
[358162432,1744806689147,-500.0,0.00040607,30]
[358162433,1744806689157,-1200.0,0.00040677,30]
[358162434,1744806689167,-32714.88551115,0.000408,21]
[358162435,1744806689176,-67829.16848151,0.0004083,2]
[358162436,1744806689187,-889.9895,0.00040888,7]
[358162437,1744806689196,-266.99685,0.00040888,30]
[358162438,1744806689206,-500.0,0.00040944,30]
[358162439,1744806689216,-581.434,0.0004099,59]
[358162440,1744806689225,-15281.47135563,0.00041,5]
[358162441,1744806689235,-3470.81729434,0.00041,3]
[358162442,1744806689245,-323.3242489,0.00041,30]
[358162443,1744806689411,-850.0,0.00041,2]
[358162444,1744806689422,-2000.0,0.00041,8]
[358162445,1744806689431,-152.0,0.00041006,15]
[358162446,1744806689442,-266.99685,0.00041088,30]
[358162447,1744806689451,-262.13,0.00041095,120]
[358162448,1744806689461,-150.0,0.00041096,10]
[358162449,1744806689471,-889.69,0.00041096,30]
[358162450,1744806689481,-151.0,0.00041096,14]
[358162451,1744806689490,-263.941034,0.00041096,14]
[358162452,1744806689501,-300.0,0.00041096,30]
[358162453,1744806689510,-500.0,0.00041096,2]
[358162454,1744806689520,-384.63394623,0.00041262,2]
[358162455,1744806689530,-266.99685,0.00041288,30]
[358162456,1744806689539,-203.479449,0.00041445,120]
[358162457,1744806689549,-266.99685,0.00041488,30]
[358162458,1744806689558,-263.0,0.0004155,90]
[358162459,1744806689567,-500.0,0.00041605,30]
[358162460,1744806689577,-350.46705347,0.00041644,10]
[358162461,1744806689587,-266.99685,0.00041688,30]
[358162462,1744806689596,-2688.988,0.000418,60]
[358162463,1744806689605,-500.0,0.00041826,30]
[358162464,1744806689615,-266.99685,0.00041888,30]
[358162465,1744806689624,-1200.0,0.00041888,30]
[358162466,1744806689635,-1000.0,0.00041905,30]
[358162467,1744806689644,-500.0,0.00041918,2]
[358162468,1744806689654,-361.0,0.0004197,120]
[358162469,1744806689663,-361.0,0.0004197,120]
[358162470,1744806689672,-361.0,0.0004198,120]
[358162471,1744806689681,-361.0,0.0004198,120]
[358162472,1744806689691,-361.0,0.0004198,120]
[358162473,1744806689700,-367.67,0.0004198,120]
[358162474,1744806689709,-361.0,0.0004199,120]
[358162475,1744806689719,-361.0,0.0004199,120]
[358162476,1744806689728,-361.0,0.0004199,120]
[358162477,1744806689737,-361.0,0.0004199,120]
[358162478,1744806689749,-900.0,0.00042,20]
[358162479,1744806689758,-1173.88772676,0.00042,2]
[358162480,1744806689767,-50019.10949719,0.00042,2]
[358162481,1744806689777,-2975635.10250053,0.00042,2]
[358162482,1744806689786,-400.0,0.00042,120]
[358162483,1744806689795,-294.46507199,0.00042,120]
[358162484,1744806689808,-2982.0,0.00042,120]
[358162485,1744806689819,-6076.4218801,0.00042,2]
[358162486,1744806689829,-243.53246951,0.00042,120]
[358162487,1744806689839,-209.4576,0.00042,10]
[358162488,1744806689848,-200.00496234,0.00042,10]
[358162489,1744806689858,-2000.0,0.00042,2]
[358162490,1744806689868,-212.0,0.00042,2]
[358162491,1744806689878,-1335.24904344,0.0004201,2]
[358162492,1744806689888,-500.0,0.00042035,30]
[358162493,1744806689897,-500.0,0.00042085,30]
[358162494,1744806689908,-266.99685,0.00042088,30]
[358162495,1744806689918,-674.4,0.00042096,30]
[358162496,1744806689928,-152.0,0.00042099,16]
[358162497,1744806689938,-582.0,0.000421,3]
[358162498,1744806689948,-304.0,0.00042228,30]
[358162499,1744806689957,-375.48,0.00042228,30]
[358162500,1744806689967,-698.94,0.00042228,30]
[358162501,1744806689977,-894.68,0.00042228,30]
[358162502,1744806689987,-150.0,0.00042228,30]
[358162503,1744806689999,-150.0,0.00042228,30]
[358162504,1744806690009,-150.0,0.00042228,30]
[358162505,1744806690018,-266.99685,0.00042288,30]
[358162506,1744806690027,-3974.55674936,0.00042406,14]
[358162507,1744806690036,-2819.836328,0.00042406,7]
[358162508,1744806690045,-1433.577278,0.00042406,7]
[358162509,1744806690055,-7541.525517,0.00042406,7]
[358162510,1744806690065,-262.13,0.00042465,120]
[358162511,1744806690075,-266.99685,0.00042488,30]
[358162512,1744806690084,-810.88,0.00042624,2]
[358162513,1744806690094,-530.81,0.00042624,2]
[358162514,1744806690104,-600.0,0.00042631,2]
[358162515,1744806690113,-167857.72931159,0.0004265,2]
[358162516,1744806690123,-8790.64861543,0.0004265,2]
[358162517,1744806690133,-266.99685,0.00042688,30]
[358162518,1744806690143,-500.0,0.0004274,2]
[358162519,1744806690152,-585.35,0.00042756,2]
[358162520,1744806690161,-187.82489473,0.0004288,2]
[358162521,1744806690171,-266.99685,0.00042888,30]
[358162522,1744806690182,-150.0,0.00042897,120]
[358162523,1744806690192,-500.0,0.00042924,30]
[358162524,1744806690202,-214.0,0.00043,7]
[358162525,1744806690211,-62375.33319343,0.00043,10]
[358162526,1744806690221,-50000.0,0.00043,9]
[358162527,1744806690231,-769.0,0.00043,120]
[358162528,1744806690242,-2500.0,0.00043,30]
[358162529,1744806690252,-167.71651696,0.00043,120]
[358162530,1744806690262,-1065.0,0.00043,120]
[358162531,1744806690271,-1026.82357088,0.00043,120]
[358162532,1744806690282,-900.0,0.00043,2]
[358162533,1744806690292,-660.37,0.00043053,2]
[358162534,1744806690301,-195.17191648,0.00043055,7]
[358162535,1744806690311,-266.99685,0.00043088,30]
[358162536,1744806690320,-503.26338377,0.00043121,30]
[358162537,1744806690330,-954.83726424,0.00043128,120]
[358162538,1744806690339,-152.0,0.00043191,17]
[358162539,1744806690349,-153.0,0.00043288,30]
[358162540,1744806690358,-153.0,0.00043288,30]
[358162541,1744806690368,-153.0,0.00043288,30]
[358162542,1744806690377,-153.0,0.00043288,30]
[358162543,1744806690391,-153.0,0.00043288,30]
[358162544,1744806690400,-153.0,0.00043288,30]
[358162545,1744806690410,-153.0,0.00043288,30]
[358162546,1744806690420,-153.0,0.00043288,30]
[358162547,1744806690431,-153.0,0.00043288,30]
[358162548,1744806690440,-153.0,0.00043288,30]
[358162549,1744806690450,-153.0,0.00043288,30]
[358162550,1744806690459,-153.0,0.00043288,30]
[358162551,1744806690469,-153.0,0.00043288,30]
[358162552,1744806690479,-153.0,0.00043288,30]
[358162553,1744806690489,-153.0,0.00043288,30]
[358162554,1744806690499,-153.0,0.00043288,30]
[358162555,1744806690509,-153.0,0.00043288,30]
[358162556,1744806690518,-153.0,0.00043288,30]
[358162557,1744806690528,-153.0,0.00043288,30]
[358162558,1744806690537,-153.0,0.00043288,30]
[358162559,1744806690546,-153.0,0.00043288,30]
[358162560,1744806690556,-153.0,0.00043288,30]
[358162561,1744806690565,-153.0,0.00043288,30]
[358162562,1744806690574,-153.0,0.00043288,30]
[358162563,1744806690584,-153.0,0.00043288,30]
[358162564,1744806690594,-153.0,0.00043288,30]
[358162565,1744806690603,-153.0,0.00043288,30]
[358162566,1744806690613,-153.0,0.00043288,30]
[358162567,1744806690622,-153.0,0.00043288,30]
[358162568,1744806690632,-153.0,0.00043288,30]
[358162569,1744806690641,-153.0,0.00043288,30]
[358162570,1744806690651,-153.0,0.00043288,30]
[358162571,1744806690661,-153.0,0.00043288,30]
[358162572,1744806690670,-153.0,0.00043288,30]
[358162573,1744806690681,-153.0,0.00043288,30]
[358162574,1744806690691,-153.0,0.00043288,30]
[358162575,1744806690701,-153.0,0.00043288,30]
[358162576,1744806690710,-153.0,0.00043288,30]
[358162577,1744806690719,-153.0,0.00043288,30]
[358162578,1744806690729,-153.0,0.00043288,30]
[358162579,1744806690738,-153.0,0.00043288,30]
[358162580,1744806690749,-153.0,0.00043288,30]
[358162581,1744806690759,-153.0,0.00043288,30]
[358162582,1744806690768,-153.0,0.00043288,30]
[358162583,1744806690777,-153.0,0.00043288,30]
[358162584,1744806690786,-153.0,0.00043288,30]
[358162585,1744806690796,-153.0,0.00043288,30]
[358162586,1744806690807,-153.0,0.00043288,30]
[358162587,1744806690817,-153.0,0.00043288,30]
[358162588,1744806690827,-153.0,0.00043288,30]
[358162589,1744806690836,-153.0,0.00043288,30]
[358162590,1744806690846,-153.0,0.00043288,30]
[358162591,1744806690855,-153.0,0.00043288,30]
[358162592,1744806690864,-266.99685,0.00043288,30]
[358162593,1744806690874,-500.0,0.00043353,30]
[358162594,1744806690884,-562.98997908,0.00043406,5]
[358162595,1744806690894,-7764.882728,0.00043406,2]
[358162596,1744806690903,-4840.43492661,0.00043406,10]
[358162597,1744806690913,-5004.56732142,0.00043406,2]
[358162598,1744806690923,-18973.42560252,0.00043406,3]
[358162599,1744806690933,-14763.47561012,0.00043406,2]
[358162600,1744806690943,-2551.26832944,0.00043406,2]
[358162601,1744806690953,-9222.83750112,0.00043406,2]
[358162602,1744806690963,-2262.99899031,0.00043406,10]
[358162603,1744806690973,-3414.75739138,0.00043406,2]
[358162604,1744806690983,-12816.16655086,0.00043406,2]
[358162605,1744806690992,-1917.84684891,0.00043406,2]
[358162606,1744806691002,-5013.3710993,0.00043406,2]
[358162607,1744806691012,-14841.57213411,0.00043406,3]
[358162608,1744806691022,-8619.64393475,0.00043406,2]
[358162609,1744806691032,-25317.25820665,0.00043406,2]
[358162610,1744806691041,-1834.06665869,0.00043406,2]
[358162611,1744806691051,-3238.39773181,0.00043406,2]
[358162612,1744806691061,-7075.6103277,0.00043406,2]
[358162613,1744806691071,-10689.62930254,0.00043406,2]
[358162614,1744806691081,-28015.6496036,0.00043406,3]
[358162615,1744806691091,-76896.33288416,0.00043406,2]
[358162616,1744806691101,-14932.4771082,0.00043406,2]
[358162617,1744806691111,-228.74632275,0.00043406,2]
[358162618,1744806691121,-173.59974417,0.00043406,2]
[358162619,1744806691131,-6000.0,0.00043406,2]
[358162620,1744806691141,-375.09180466,0.00043406,2]
[358162621,1744806691151,-1469.23963631,0.00043406,2]
[358162622,1744806691162,-1032.54153519,0.00043406,2]
[358162623,1744806691171,-164097.99938988,0.00043406,2]
[358162624,1744806691181,-449.80045021,0.00043406,2]
[358162625,1744806691191,-1066.71813433,0.00043406,2]
[358162626,1744806691201,-21263.54856874,0.00043406,2]
[358162627,1744806691211,-2500.0,0.00043406,2]
[358162628,1744806691221,-579.09761861,0.00043406,2]
[358162629,1744806691231,-342.08839564,0.00043406,2]
[358162630,1744806691241,-1100.0,0.00043406,2]
[358162631,1744806691251,-911.87722684,0.00043406,2]
[358162632,1744806691261,-15579.98230029,0.00043406,2]
[358162633,1744806691271,-481.42388162,0.00043406,2]
[358162634,1744806691281,-1585.53660686,0.00043406,2]
[358162635,1744806691291,-547.39431526,0.00043406,2]
[358162636,1744806691301,-1010.88346061,0.00043406,2]
[358162637,1744806691311,-364.48087706,0.00043406,2]
[358162638,1744806691321,-2203.57910145,0.00043406,2]
[358162639,1744806691331,-283.44697875,0.00043406,2]
[358162640,1744806691341,-1835.01779552,0.00043406,2]
[358162641,1744806691352,-1116.59032955,0.00043406,2]
[358162642,1744806691361,-22757.2155139,0.00043406,2]
[358162643,1744806691371,-150.0,0.00043406,7]
[358162644,1744806691380,-169569.34426685,0.00043406,2]
[358162645,1744806691392,-1279.62548626,0.00043406,4]
[358162646,1744806691403,-14051.66603068,0.00043406,2]
[358162647,1744806691413,-220.10693535,0.00043406,2]
[358162648,1744806691422,-1704.0367576,0.00043406,2]
[358162649,1744806691431,-1429.24876547,0.00043406,2]
[358162650,1744806691443,-202.52836767,0.00043406,2]
[358162651,1744806691453,-282.35154539,0.00043406,2]
[358162652,1744806691463,-20223.09536127,0.00043406,2]
[358162653,1744806691473,-5676.65333578,0.00043406,2]
[358162654,1744806691482,-750.84108485,0.00043406,2]
[358162655,1744806691491,-1012.1226648,0.00043406,2]
[358162656,1744806691501,-162.91,0.00043406,2]
[358162657,1744806691510,-161.50994596,0.00043406,2]
[358162658,1744806691519,-2170.41577275,0.00043406,2]
[358162659,1744806691529,-150.0,0.00043406,2]
[358162660,1744806691539,-30000.0,0.00043406,2]
[358162661,1744806691548,-14789.85190543,0.00043406,7]
[358162662,1744806691558,-216.49050333,0.00043406,7]
[358162663,1744806691567,-2701.5240964,0.00043406,2]
[358162664,1744806691576,-6755.45144003,0.00043406,4]
[358162665,1744806691585,-5184.13897387,0.00043406,4]
[358162666,1744806691595,-899.03383904,0.00043406,2]
[358162667,1744806691604,-99578.79022228,0.00043406,2]
[358162668,1744806691614,-871.62118726,0.00043406,2]
[358162669,1744806691623,-218.34330457,0.00043406,5]
[358162670,1744806691634,-374.28454073,0.00043406,2]
[358162671,1744806691643,-390.03649711,0.00043406,2]
[358162672,1744806691653,-201531.75588731,0.00043406,2]
[358162673,1744806691662,-121868.07438334,0.00043406,2]
[358162674,1744806691672,-1210.0,0.00043406,2]
[358162675,1744806691681,-702.44524206,0.00043406,2]
[358162676,1744806691690,-361.7256071,0.00043406,2]
[358162677,1744806691699,-347.87959689,0.00043406,2]
[358162678,1744806691709,-760.71612187,0.00043406,2]
[358162679,1744806691719,-1519.03306513,0.00043406,2]
[358162680,1744806691729,-1028.31254949,0.00043406,2]
[358162681,1744806691738,-5178.51988926,0.00043406,2]
[358162682,1744806691747,-2452.55413148,0.00043406,2]
[358162683,1744806691756,-80818.7006342,0.00043406,2]
[358162684,1744806691766,-215306.01342865,0.00043406,2]
[358162685,1744806691775,-151.1250532,0.00043406,2]
[358162686,1744806691786,-43881.31780341,0.00043406,2]
[358162687,1744806691795,-248.83210437,0.00043406,2]
[358162688,1744806691804,-164.22131201,0.00043406,2]
[358162689,1744806691814,-1260.19728459,0.00043406,2]
[358162690,1744806691822,-7710.98179597,0.00043406,2]
[358162691,1744806691831,-1040.19609171,0.00043406,2]
[358162692,1744806691840,-31949.59458696,0.00043406,2]
[358162693,1744806691849,-594.07889424,0.00043406,2]
[358162694,1744806691857,-1310.03378499,0.00043406,2]
[358162695,1744806691866,-183.84354674,0.00043406,2]
[358162696,1744806691875,-643.0,0.00043406,2]
[358162697,1744806691884,-969.12244062,0.00043406,2]
[358162698,1744806691893,-572.52651252,0.00043406,2]
[358162699,1744806692054,-175.23064369,0.00043406,2]
[358162700,1744806692064,-154.29627658,0.00043406,2]
[358162701,1744806692074,-550.0,0.00043406,2]
[358162702,1744806692084,-1465.08471895,0.00043406,2]
[358162703,1744806692093,-1007.20952475,0.00043406,2]
[358162704,1744806692102,-802.43808689,0.00043406,2]
[358162705,1744806692111,-562.76326838,0.00043406,2]
[358162706,1744806692120,-150.0,0.00043406,2]
[358162707,1744806692130,-625.86745546,0.00043406,2]
[358162708,1744806692139,-214.55239205,0.00043406,2]
[358162709,1744806692148,-1415.06999654,0.00043406,2]
[358162710,1744806692157,-229.53956377,0.00043406,2]
[358162711,1744806692166,-176886.0905477,0.00043406,7]
[358162712,1744806692175,-7475.24259576,0.00043406,2]
[358162713,1744806692183,-561.40683149,0.00043406,5]
[358162714,1744806692192,-1982.22208672,0.00043406,5]
[358162715,1744806692202,-975.66105082,0.00043406,5]
[358162716,1744806692212,-591.37552661,0.00043406,5]
[358162717,1744806692222,-3100.0,0.00043406,5]
[358162718,1744806692231,-1078.24400647,0.00043406,5]
[358162719,1744806692241,-18881.83195156,0.00043406,5]
[358162720,1744806692252,-1024.20374436,0.00043406,2]
[358162721,1744806692262,-7881.58822657,0.00043406,7]
[358162722,1744806692271,-51598.18730066,0.00043406,7]
[358162723,1744806692279,-3689.26648717,0.00043406,7]
[358162724,1744806692289,-2048.93150152,0.00043406,3]
[358162725,1744806692299,-1888.84299082,0.00043406,7]
[358162726,1744806692309,-10599.85572324,0.00043406,3]
[358162727,1744806692319,-150.0,0.00043406,2]
[358162728,1744806692329,-156.83391948,0.00043406,3]
[358162729,1744806692338,-24581.97416402,0.00043406,5]
[358162730,1744806692348,-800.0,0.00043406,5]
[358162731,1744806692358,-2300.47311652,0.00043406,7]
[358162732,1744806692368,-3388.71718449,0.00043406,2]
[358162733,1744806692378,-801.09706847,0.00043406,5]